[Event "*** SCC Grand Prix: Titled Tuesday Blitz"]
[Site "Chess.com"]
[Date "2020.07.21"]
[Round "2"]
[White "louis198"]
[Black "TigrVShlyape"]
[Result "0-1"]
[WhiteElo "2565"]
[BlackElo "2859"]
[TimeControl "180+1"]
[EndTime "10:17:36 PDT"]
[Termination "TigrVShlyape won by checkmate"]

1. d4 {[%clk 0:03:00.9]} 1... Nf6 {[%clk 0:02:50.6]} 2. Bf4 {[%clk 0:03:00.4]}
2... g6 {[%clk 0:02:48.7]} 3. e3 {[%clk 0:02:59.2]} 3... Bg7 {[%clk 0:02:44.2]}
4. h3 {[%clk 0:02:59]} 4... c5 {[%clk 0:02:38.8]} 5. Nf3 {[%clk 0:02:58]} 5...
O-O {[%clk 0:02:34.5]} 6. Nbd2 {[%clk 0:02:57.5]} 6... b6 {[%clk 0:02:30.7]} 7.
c3 {[%clk 0:02:53.7]} 7... Bb7 {[%clk 0:02:30.3]} 8. a4 {[%clk 0:02:53.1]} 8...
a6 {[%clk 0:02:25.1]} 9. Bc4 {[%clk 0:02:52.2]} 9... d6 {[%clk 0:02:21.2]} 10.
O-O {[%clk 0:02:51.2]} 10... Nbd7 {[%clk 0:02:20.6]} 11. Qb3 {[%clk 0:02:45.3]}
11... h6 {[%clk 0:02:17.1]} 12. Rfd1 {[%clk 0:02:43.9]} 12... Ne4 {[%clk
0:02:10.3]} 13. Nxe4 {[%clk 0:02:41.7]} 13... Bxe4 {[%clk 0:02:10.2]} 14. Nd2
{[%clk 0:02:42.6]} 14... Bc6 {[%clk 0:02:07.6]} 15. Qc2 {[%clk 0:02:28.2]} 15...
Kh7 {[%clk 0:02:04]} 16. b4 {[%clk 0:02:26.2]} 16... b5 {[%clk 0:01:44.3]} 17.
axb5 {[%clk 0:02:24.1]} 17... axb5 {[%clk 0:01:44]} 18. Be2 {[%clk 0:02:21.2]}
18... c4 {[%clk 0:01:39.6]} 19. Bf3 {[%clk 0:02:18.6]} 19... Qb6 {[%clk
0:01:36.7]} 20. d5 {[%clk 0:02:06.6]} 20... Bb7 {[%clk 0:01:36]} 21. e4 {[%clk
0:02:07]} 21... Rfc8 {[%clk 0:01:24.1]} 22. Be3 {[%clk 0:02:06.9]} 22... Qd8
{[%clk 0:01:23.9]} 23. Be2 {[%clk 0:02:07.3]} 23... Rxa1 {[%clk 0:01:23.5]} 24.
Rxa1 {[%clk 0:02:06.1]} 24... Ra8 {[%clk 0:01:24]} 25. Rxa8 {[%clk 0:01:56.6]}
25... Qxa8 {[%clk 0:01:23.7]} 26. Nf3 {[%clk 0:01:50.5]} 26... Qa1+ {[%clk
0:01:21.7]} 27. Kh2 {[%clk 0:01:43.6]} 27... Bxc3 {[%clk 0:01:20.5]} 28. h4
{[%clk 0:01:35.6]} 28... Ne5 {[%clk 0:01:17.1]} 29. h5 {[%clk 0:01:35.5]} 29...
Ng4+ {[%clk 0:01:16.3]} 30. Kg3 {[%clk 0:01:34]} 30... Nxe3 {[%clk 0:01:16.1]}
31. fxe3 {[%clk 0:01:33.8]} 31... Qb2 {[%clk 0:01:15.3]} 32. hxg6+ {[%clk
0:01:29.3]} 32... fxg6 {[%clk 0:01:14.8]} 33. Qd1 {[%clk 0:01:29.9]} 33... Kg7
{[%clk 0:01:12.8]} 34. Kf2 {[%clk 0:01:19]} 34... Qxb4 {[%clk 0:01:10.2]} 35.
Nd4 {[%clk 0:01:17.2]} 35... Bc8 {[%clk 0:01:07.2]} 36. Nc6 {[%clk 0:01:16.6]}
36... Qb2 {[%clk 0:01:01.7]} 37. Kg3 {[%clk 0:01:05.7]} 37... Bf6 {[%clk
0:00:59.2]} 38. Bg4 {[%clk 0:01:03.9]} 38... Bxg4 {[%clk 0:00:56.9]} 39. Qxg4
{[%clk 0:01:03.5]} 39... Qd2 {[%clk 0:00:55.5]} 40. Qe6 {[%clk 0:00:59.7]} 40...
Qxe3+ {[%clk 0:00:55]} 41. Kh2 {[%clk 0:01:00.1]} 41... Qf4+ {[%clk 0:00:54.1]}
42. Kg1 {[%clk 0:00:59]} 42... c3 {[%clk 0:00:52.1]} 43. Nd8 {[%clk 0:00:52.1]}
43... Bd4+ {[%clk 0:00:49.1]} 44. Kh1 {[%clk 0:00:51.9]} 44... Qf1+ {[%clk
0:00:49]} 45. Kh2 {[%clk 0:00:52.1]} 45... Be5+ {[%clk 0:00:49.4]} 46. g3 {[%clk
0:00:49.2]} 46... Qf2+ {[%clk 0:00:49.4]} 47. Kh1 {[%clk 0:00:49.5]} 47... Qf3+
{[%clk 0:00:49.7]} 48. Kg1 {[%clk 0:00:48.4]} 48... Qxg3+ {[%clk 0:00:50.1]} 49.
Kf1 {[%clk 0:00:48.7]} 49... Qf3+ {[%clk 0:00:50]} 50. Kg1 {[%clk 0:00:46.9]}
50... Qf6 {[%clk 0:00:46.8]} 51. Qc8 {[%clk 0:00:44.1]} 51... Bd4+ {[%clk
0:00:38.8]} 52. Kg2 {[%clk 0:00:41.8]} 52... Qf2+ {[%clk 0:00:38.4]} 53. Kh3
{[%clk 0:00:40.8]} 53... Qf1+ {[%clk 0:00:35.5]} 54. Kh2 {[%clk 0:00:25.5]}
54... Be5# {[%clk 0:00:35.2]} 0-1

[Event "*** SCC Grand Prix: Titled Tuesday Blitz"]
[Site "Chess.com"]
[Date "2020.07.21"]
[Round "2"]
[White "boasovietica"]
[Black "1d4_1-0"]
[Result "1-0"]
[WhiteElo "2417"]
[BlackElo "2146"]
[TimeControl "180+1"]
[EndTime "10:17:36 PDT"]
[Termination "boasovietica won by resignation"]

1. e4 {[%clk 0:03:00.9]} 1... e5 {[%clk 0:02:59.2]} 2. Nf3 {[%clk 0:02:52.6]}
2... Nc6 {[%clk 0:02:59.7]} 3. Bb5 {[%clk 0:02:52.3]} 3... a6 {[%clk 0:02:56.6]}
4. Ba4 {[%clk 0:02:52.2]} 4... d6 {[%clk 0:02:56.4]} 5. c4 {[%clk 0:02:43.6]}
5... g6 {[%clk 0:02:47.1]} 6. d4 {[%clk 0:02:39.6]} 6... Bd7 {[%clk 0:02:40]} 7.
d5 {[%clk 0:02:33.9]} 7... Nce7 {[%clk 0:02:39.9]} 8. Bc2 {[%clk 0:02:33.2]}
8... Bg7 {[%clk 0:02:38.7]} 9. O-O {[%clk 0:02:32.8]} 9... h6 {[%clk 0:02:38.5]}
10. Ne1 {[%clk 0:02:32.8]} 10... f5 {[%clk 0:02:34.4]} 11. exf5 {[%clk
0:02:27.8]} 11... gxf5 {[%clk 0:02:34.4]} 12. Qh5+ {[%clk 0:02:26.8]} 12... Kf8
{[%clk 0:02:34.6]} 13. Nc3 {[%clk 0:02:18.4]} 13... Nf6 {[%clk 0:02:27.5]} 14.
Qe2 {[%clk 0:02:15.7]} 14... Ng6 {[%clk 0:02:16.6]} 15. g3 {[%clk 0:02:08.4]}
15... Nh7 {[%clk 0:02:05.2]} 16. f4 {[%clk 0:02:05.5]} 16... e4 {[%clk
0:02:02.9]} 17. Ng2 {[%clk 0:02:04.4]} 17... Nf6 {[%clk 0:01:47.9]} 18. Ne3
{[%clk 0:02:00]} 18... h5 {[%clk 0:01:47.1]} 19. Kh1 {[%clk 0:01:47.7]} 19...
Kf7 {[%clk 0:01:40.5]} 20. Bd2 {[%clk 0:01:45.8]} 20... Ng4 {[%clk 0:01:23.7]}
21. h3 {[%clk 0:01:37.4]} 21... Nf6 {[%clk 0:01:07]} 22. Qf2 {[%clk 0:01:28.4]}
22... Qe7 {[%clk 0:01:03.5]} 23. Ne2 {[%clk 0:01:27.3]} 23... h4 {[%clk
0:00:53.2]} 24. g4 {[%clk 0:01:08.2]} 24... fxg4 {[%clk 0:00:52.7]} 25. hxg4
{[%clk 0:01:08.1]} 25... Nxg4 {[%clk 0:00:45.4]} 26. Nxg4 {[%clk 0:01:06.8]}
26... Bxg4 {[%clk 0:00:46.3]} 27. Nd4 {[%clk 0:00:49.5]} 27... Rag8 {[%clk
0:00:34.6]} 28. Rae1 {[%clk 0:00:42.4]} 28... Qf6 {[%clk 0:00:19.3]} 29. Bc3
{[%clk 0:00:39.3]} 29... h3 {[%clk 0:00:11.5]} 30. Bxe4 {[%clk 0:00:36.1]} 30...
Qh4 {[%clk 0:00:10.3]} 31. f5 {[%clk 0:00:24.1]} 31... Ne5 {[%clk 0:00:09]} 32.
Ne6 {[%clk 0:00:22.6]} 32... Bf6 {[%clk 0:00:08.4]} 33. Nf4 {[%clk 0:00:11.9]}
33... Qg5 {[%clk 0:00:08.1]} 34. Ng6 {[%clk 0:00:11.6]} 34... Nxg6 {[%clk
0:00:07.6]} 35. fxg6+ {[%clk 0:00:11.9]} 35... Rxg6 {[%clk 0:00:07.1]} 36. Bxg6+
{[%clk 0:00:11.8]} 36... Qxg6 {[%clk 0:00:07.4]} 37. Qxf6+ {[%clk 0:00:12.2]}
37... Qxf6 {[%clk 0:00:06.9]} 38. Rxf6+ {[%clk 0:00:13.1]} 38... Kg7 {[%clk
0:00:07.1]} 39. Rf4+ {[%clk 0:00:12.1]} 39... Kg8 {[%clk 0:00:08]} 40. Rxg4+
{[%clk 0:00:12]} 1-0

[Event "*** SCC Grand Prix: Titled Tuesday Blitz"]
[Site "Chess.com"]
[Date "2020.07.21"]
[Round "2"]
[White "ljuks68"]
[Black "nitpicker"]
[Result "0-1"]
[WhiteElo "2428"]
[BlackElo "2237"]
[TimeControl "180+1"]
[EndTime "10:17:38 PDT"]
[Termination "nitpicker won on time"]

1. e4 {[%clk 0:03:00.6]} 1... c5 {[%clk 0:02:59.2]} 2. Nf3 {[%clk 0:03:00]} 2...
Nc6 {[%clk 0:02:59.2]} 3. d4 {[%clk 0:02:58.9]} 3... cxd4 {[%clk 0:02:58.7]} 4.
Nxd4 {[%clk 0:02:59]} 4... Nf6 {[%clk 0:02:59]} 5. Nc3 {[%clk 0:02:58.9]} 5...
d6 {[%clk 0:02:59.3]} 6. Bc4 {[%clk 0:02:57.7]} 6... Qb6 {[%clk 0:02:58.2]} 7.
Nb3 {[%clk 0:02:54.3]} 7... e6 {[%clk 0:02:58.3]} 8. Bg5 {[%clk 0:02:48.7]} 8...
Be7 {[%clk 0:02:56.4]} 9. Bxf6 {[%clk 0:02:48.8]} 9... gxf6 {[%clk 0:02:45.1]}
10. Qh5 {[%clk 0:02:34.5]} 10... a6 {[%clk 0:02:37.3]} 11. Rf1 {[%clk
0:02:24.9]} 11... Ne5 {[%clk 0:02:33.2]} 12. Be2 {[%clk 0:02:22.7]} 12... O-O
{[%clk 0:02:02.6]} 13. f4 {[%clk 0:02:14.9]} 13... Ng6 {[%clk 0:02:02.5]} 14.
Rf3 {[%clk 0:01:43]} 14... f5 {[%clk 0:01:01.4]} 15. exf5 {[%clk 0:01:38.1]}
15... exf5 {[%clk 0:01:00.5]} 16. Nd5 {[%clk 0:01:11.7]} 16... Qg1+ {[%clk
0:00:49.2]} 17. Kd2 {[%clk 0:01:02.4]} 17... Qxg2 {[%clk 0:00:42.2]} 18. Raf1
{[%clk 0:00:20.4]} 18... Bh4 {[%clk 0:00:33.3]} 19. Qh6 {[%clk 0:00:10]} 19...
Be6 {[%clk 0:00:29.9]} 20. Rg3 {[%clk 0:00:06.7]} 20... Qxd5+ {[%clk 0:00:26.7]}
21. Kc1 {[%clk 0:00:05.5]} 21... Bxg3 {[%clk 0:00:26.9]} 22. hxg3 {[%clk
0:00:05.6]} 22... Rfc8 {[%clk 0:00:21.5]} 23. Rh1 {[%clk 0:00:04.7]} 23... Nf8
{[%clk 0:00:21.5]} 24. Qg5+ {[%clk 0:00:04.5]} 24... Ng6 {[%clk 0:00:19.6]} 25.
Qh6 {[%clk 0:00:04.6]} 25... Qe4 {[%clk 0:00:16.6]} 26. Bd1 {[%clk 0:00:02.7]}
26... a5 {[%clk 0:00:14.6]} 27. Qxh7+ {[%clk 0:00:02.1]} 27... Kf8 {[%clk
0:00:14]} 28. Nd2 {[%clk 0:00:02.2]} 28... Qd5 {[%clk 0:00:10.1]} 29. Nf3 {[%clk
0:00:01.5]} 29... Qxa2 {[%clk 0:00:07.9]} 30. Ng5 {[%clk 0:00:01.5]} 30... Qa1+
{[%clk 0:00:02.9]} 31. Kd2 {[%clk 0:00:01.6]} 31... Qxb2 {[%clk 0:00:02.5]} 32.
Nxe6+ {[%clk 0:00:01.3]} 32... Ke7 {[%clk 0:00:02.7]} 0-1

[Event "*** SCC Grand Prix: Titled Tuesday Blitz"]
[Site "Chess.com"]
[Date "2020.07.21"]
[Round "2"]
[White "RoelandPruijssers"]
[Black "vladislavkovalev"]
[Result "0-1"]
[WhiteElo "2570"]
[BlackElo "2891"]
[TimeControl "180+1"]
[EndTime "10:17:40 PDT"]
[Termination "vladislavkovalev won on time"]

1. e4 {[%clk 0:03:00.9]} 1... e5 {[%clk 0:03:00]} 2. Nf3 {[%clk 0:02:59.5]} 2...
Nc6 {[%clk 0:03:00.6]} 3. Bc4 {[%clk 0:02:59.4]} 3... Nf6 {[%clk 0:03:00.5]} 4.
d3 {[%clk 0:02:59.4]} 4... Bc5 {[%clk 0:03:00.9]} 5. O-O {[%clk 0:03:00]} 5...
a6 {[%clk 0:03:01.5]} 6. c3 {[%clk 0:02:59.3]} 6... d6 {[%clk 0:03:02]} 7. Bb3
{[%clk 0:02:57.9]} 7... Ba7 {[%clk 0:03:02.5]} 8. Nbd2 {[%clk 0:02:56.8]} 8...
h6 {[%clk 0:03:02.8]} 9. Re1 {[%clk 0:02:54.5]} 9... O-O {[%clk 0:03:03]} 10.
Nf1 {[%clk 0:02:46.2]} 10... Re8 {[%clk 0:03:02.8]} 11. Ng3 {[%clk 0:02:44.2]}
11... Be6 {[%clk 0:03:03.2]} 12. Bc2 {[%clk 0:02:43]} 12... Ne7 {[%clk
0:03:01.6]} 13. d4 {[%clk 0:02:39.8]} 13... Ng6 {[%clk 0:02:52.8]} 14. h3 {[%clk
0:02:37.3]} 14... c6 {[%clk 0:02:38.3]} 15. Be3 {[%clk 0:02:34.8]} 15... b5
{[%clk 0:02:32.5]} 16. Qd2 {[%clk 0:02:30.4]} 16... Kh7 {[%clk 0:02:32.1]} 17.
a4 {[%clk 0:02:23.8]} 17... Qc7 {[%clk 0:02:29.2]} 18. Red1 {[%clk 0:02:14.5]}
18... Bb6 {[%clk 0:02:25.9]} 19. b4 {[%clk 0:02:08.6]} 19... Rad8 {[%clk
0:02:01.9]} 20. axb5 {[%clk 0:01:57.5]} 20... axb5 {[%clk 0:02:00.8]} 21. Ra6
{[%clk 0:01:57.7]} 21... Rb8 {[%clk 0:01:54.2]} 22. Nf5 {[%clk 0:01:39.6]} 22...
exd4 {[%clk 0:01:35.5]} 23. N3xd4 {[%clk 0:01:23.6]} 23... Bc8 {[%clk
0:01:35.6]} 24. Bxh6 {[%clk 0:01:18]} 24... Bxd4 {[%clk 0:01:30.5]} 25. Bxg7
{[%clk 0:01:16.6]} 25... Be5 {[%clk 0:01:22.1]} 26. Qh6+ {[%clk 0:01:08.9]}
26... Kg8 {[%clk 0:01:22.6]} 27. Bh8 {[%clk 0:00:35.8]} 27... Ng4 {[%clk
0:01:14.1]} 28. hxg4 {[%clk 0:00:23.2]} 28... Bxh8 {[%clk 0:01:14.6]} 29. Nxd6
{[%clk 0:00:22.4]} 29... Bxa6 {[%clk 0:01:11]} 30. Bb3 {[%clk 0:00:22.7]} 30...
Ne5 {[%clk 0:01:03.5]} 31. Qg5+ {[%clk 0:00:16.3]} 31... Kf8 {[%clk 0:01:03.7]}
32. Qh6+ {[%clk 0:00:13.6]} 32... Bg7 {[%clk 0:00:58.3]} 33. Qh7 {[%clk
0:00:14]} 33... Qe7 {[%clk 0:00:39.1]} 34. Nf5 {[%clk 0:00:10.5]} 34... Qg5
{[%clk 0:00:38.8]} 35. Rd6 {[%clk 0:00:04.3]} 35... Rbd8 {[%clk 0:00:26.4]} 36.
Rh6 {[%clk 0:00:04]} 36... Nxg4 {[%clk 0:00:16.3]} 37. Rh5 {[%clk 0:00:01.1]}
37... Qc1+ {[%clk 0:00:15.8]} 0-1

[Event "*** SCC Grand Prix: Titled Tuesday Blitz"]
[Site "Chess.com"]
[Date "2020.07.21"]
[Round "2"]
[White "BocharovD"]
[Black "DishonorOnYourCow"]
[Result "1-0"]
[WhiteElo "2749"]
[BlackElo "2327"]
[TimeControl "180+1"]
[EndTime "10:17:41 PDT"]
[Termination "BocharovD won on time"]

1. e4 {[%clk 0:03:00.9]} 1... e5 {[%clk 0:02:58.4]} 2. Nf3 {[%clk 0:02:58.9]}
2... Nc6 {[%clk 0:02:55.3]} 3. Bb5 {[%clk 0:02:57.5]} 3... Nf6 {[%clk
0:02:54.6]} 4. d3 {[%clk 0:02:55.2]} 4... Bc5 {[%clk 0:02:52.3]} 5. Bxc6 {[%clk
0:02:54.2]} 5... dxc6 {[%clk 0:02:50.8]} 6. Nc3 {[%clk 0:02:54.1]} 6... O-O
{[%clk 0:02:48.9]} 7. h3 {[%clk 0:02:53]} 7... Nd7 {[%clk 0:02:48.1]} 8. Be3
{[%clk 0:02:51]} 8... f6 {[%clk 0:02:41.9]} 9. Qd2 {[%clk 0:02:44.2]} 9... Bxe3
{[%clk 0:02:21]} 10. Qxe3 {[%clk 0:02:41.4]} 10... Qe7 {[%clk 0:02:19.1]} 11.
O-O-O {[%clk 0:02:37.7]} 11... Nc5 {[%clk 0:02:17.6]} 12. d4 {[%clk 0:02:36.3]}
12... exd4 {[%clk 0:02:10.5]} 13. Nxd4 {[%clk 0:02:37.2]} 13... a5 {[%clk
0:02:01.4]} 14. g4 {[%clk 0:02:35.7]} 14... a4 {[%clk 0:01:52.2]} 15. a3 {[%clk
0:02:31.9]} 15... Re8 {[%clk 0:01:39.6]} 16. Rhe1 {[%clk 0:02:22.8]} 16... Ne6
{[%clk 0:01:16.8]} 17. f4 {[%clk 0:01:57.2]} 17... Nxd4 {[%clk 0:00:36.3]} 18.
Rxd4 {[%clk 0:01:44.2]} 18... b5 {[%clk 0:00:29.8]} 19. f5 {[%clk 0:01:38.9]}
19... c5 {[%clk 0:00:25.9]} 20. Rd2 {[%clk 0:01:33]} 20... b4 {[%clk 0:00:25.4]}
21. Nd5 {[%clk 0:01:32.2]} 21... Qf7 {[%clk 0:00:24.1]} 22. Qxc5 {[%clk
0:01:29.4]} 22... bxa3 {[%clk 0:00:20.9]} 23. bxa3 {[%clk 0:01:25.9]} 23... Bb7
{[%clk 0:00:19.6]} 24. Re3 {[%clk 0:01:07.5]} 24... c6 {[%clk 0:00:18.7]} 25.
Nb6 {[%clk 0:01:00.9]} 25... Rad8 {[%clk 0:00:16.6]} 26. Qc4 {[%clk 0:01:00.4]}
26... Qxc4 {[%clk 0:00:10.5]} 27. Nxc4 {[%clk 0:00:59.9]} 27... Rxd2 {[%clk
0:00:07.6]} 28. Kxd2 {[%clk 0:01:00.8]} 28... c5 {[%clk 0:00:07.9]} 29. e5
{[%clk 0:01:00.2]} 29... fxe5 {[%clk 0:00:07.8]} 30. Rxe5 {[%clk 0:00:59.8]}
30... Rd8+ {[%clk 0:00:07.6]} 31. Kc3 {[%clk 0:01:00.1]} 31... Bg2 {[%clk
0:00:06.7]} 32. h4 {[%clk 0:01:00]} 32... Bf3 {[%clk 0:00:06.1]} 33. g5 {[%clk
0:00:59.5]} 33... Rc8 {[%clk 0:00:05.5]} 34. Nd6 {[%clk 0:00:58.2]} 34... Rd8
{[%clk 0:00:03.6]} 35. Ne4 {[%clk 0:00:49.2]} 35... Bxe4 {[%clk 0:00:02.2]} 36.
Rxe4 {[%clk 0:00:49.4]} 36... Rd1 {[%clk 0:00:02.3]} 37. Rxa4 {[%clk 0:00:48.6]}
37... Rf1 {[%clk 0:00:02.3]} 38. Re4 {[%clk 0:00:47]} 38... Rxf5 {[%clk
0:00:01.4]} 39. a4 {[%clk 0:00:47.1]} 39... Rf3+ {[%clk 0:00:01.7]} 40. Kc4
{[%clk 0:00:46.8]} 40... Rf2 {[%clk 0:00:02.6]} 41. c3 {[%clk 0:00:46.4]} 41...
Rc2 {[%clk 0:00:02.7]} 42. Kxc5 {[%clk 0:00:45.6]} 42... Rxc3+ {[%clk
0:00:02.4]} 43. Rc4 {[%clk 0:00:46.1]} 43... Ra3 {[%clk 0:00:02.5]} 44. Kb6
{[%clk 0:00:44.3]} 44... Kf7 {[%clk 0:00:02.8]} 45. a5 {[%clk 0:00:44.1]} 45...
h6 {[%clk 0:00:03.2]} 46. gxh6 {[%clk 0:00:43.4]} 46... gxh6 {[%clk 0:00:04.1]}
47. Rb4 {[%clk 0:00:42.1]} 47... Kg6 {[%clk 0:00:03.6]} 48. a6 {[%clk
0:00:42.5]} 48... Kh5 {[%clk 0:00:03.2]} 49. a7 {[%clk 0:00:43]} 49... Ra1
{[%clk 0:00:03]} 50. Kb7 {[%clk 0:00:43]} 50... Ra2 {[%clk 0:00:01.5]} 51. a8=Q
{[%clk 0:00:42.8]} 1-0

[Event "*** SCC Grand Prix: Titled Tuesday Blitz"]
[Site "Chess.com"]
[Date "2020.07.21"]
[Round "2"]
[White "mirochka"]
[Black "chigorin28"]
[Result "0-1"]
[WhiteElo "2168"]
[BlackElo "2419"]
[TimeControl "180+1"]
[EndTime "10:17:42 PDT"]
[Termination "chigorin28 won on time"]

1. e4 {[%clk 0:03:00.9]} 1... c5 {[%clk 0:02:59.5]} 2. d4 {[%clk 0:02:59.3]}
2... cxd4 {[%clk 0:02:59.2]} 3. c3 {[%clk 0:02:59.4]} 3... d5 {[%clk 0:02:58.2]}
4. exd5 {[%clk 0:02:41.1]} 4... Qxd5 {[%clk 0:02:59.1]} 5. cxd4 {[%clk 0:02:37]}
5... Nc6 {[%clk 0:02:59.2]} 6. Nf3 {[%clk 0:02:36]} 6... e5 {[%clk 0:02:57]} 7.
dxe5 {[%clk 0:02:30]} 7... Bb4+ {[%clk 0:02:47.5]} 8. Nc3 {[%clk 0:02:19]} 8...
Qxd1+ {[%clk 0:02:28.8]} 9. Kxd1 {[%clk 0:02:17.7]} 9... Bg4 {[%clk 0:02:29]}
10. Bf4 {[%clk 0:02:06.2]} 10... O-O-O+ {[%clk 0:02:23.4]} 11. Kc2 {[%clk
0:01:52.6]} 11... Bxf3 {[%clk 0:01:10.4]} 12. gxf3 {[%clk 0:01:49.4]} 12... Nd4+
{[%clk 0:01:10.5]} 13. Kc1 {[%clk 0:01:48.8]} 13... Nxf3 {[%clk 0:00:52.4]} 14.
Bh3+ {[%clk 0:01:46.7]} 14... Kb8 {[%clk 0:00:42.4]} 15. e6+ {[%clk 0:01:17.3]}
15... Ka8 {[%clk 0:00:34]} 16. exf7 {[%clk 0:01:15.3]} 16... Nf6 {[%clk
0:00:33.8]} 17. Rd1 {[%clk 0:01:02.3]} 17... Nd4 {[%clk 0:00:25.9]} 18. Be5
{[%clk 0:00:41.5]} 18... Nc6 {[%clk 0:00:13.2]} 19. Bg3 {[%clk 0:00:30.5]} 19...
Rxd1+ {[%clk 0:00:10.3]} 20. Kxd1 {[%clk 0:00:29.8]} 20... Rf8 {[%clk
0:00:10.7]} 21. Nb5 {[%clk 0:00:22.2]} 21... Nd5 {[%clk 0:00:04.7]} 22. Be6
{[%clk 0:00:20.6]} 22... a6 {[%clk 0:00:04.7]} 23. Bxd5 {[%clk 0:00:16.3]} 23...
axb5 {[%clk 0:00:04.6]} 24. Ke2 {[%clk 0:00:15]} 24... Nd4+ {[%clk 0:00:02.6]}
25. Kd3 {[%clk 0:00:14.4]} 25... Nf5 {[%clk 0:00:02.3]} 26. Be5 {[%clk
0:00:12.7]} 26... Rd8 {[%clk 0:00:02.2]} 27. Ke4 {[%clk 0:00:11.4]} 27... Nd6+
{[%clk 0:00:02.5]} 28. Kf3 {[%clk 0:00:06.8]} 28... Nf5 {[%clk 0:00:02.2]} 29.
Ke4 {[%clk 0:00:06.5]} 29... Nd6+ {[%clk 0:00:02.3]} 30. Bxd6 {[%clk 0:00:06.3]}
30... Bxd6 {[%clk 0:00:01.8]} 31. Be6 {[%clk 0:00:05.9]} 31... Be7 {[%clk
0:00:01.4]} 32. Rc1 {[%clk 0:00:03.8]} 32... Kb8 {[%clk 0:00:01.1]} 33. Rc3
{[%clk 0:00:03.1]} 33... Rd6 {[%clk 0:00:01.3]} 34. Bb3 {[%clk 0:00:01.1]} 34...
Rc6 {[%clk 0:00:01.4]} 0-1

[Event "*** SCC Grand Prix: Titled Tuesday Blitz"]
[Site "Chess.com"]
[Date "2020.07.21"]
[Round "2"]
[White "bascheyaro"]
[Black "LisikValera"]
[Result "1-0"]
[WhiteElo "2724"]
[BlackElo "2478"]
[TimeControl "180+1"]
[EndTime "10:17:43 PDT"]
[Termination "bascheyaro won on time"]

1. d4 {[%clk 0:03:00.9]} 1... d5 {[%clk 0:02:59.6]} 2. Bf4 {[%clk 0:03:00.7]}
2... Bf5 {[%clk 0:02:58.9]} 3. e3 {[%clk 0:03:00.8]} 3... e6 {[%clk 0:02:59.2]}
4. Nf3 {[%clk 0:03:00.5]} 4... Nf6 {[%clk 0:02:59]} 5. c4 {[%clk 0:03:00.7]}
5... Bxb1 {[%clk 0:02:58.1]} 6. Qxb1 {[%clk 0:03:01.6]} 6... Bb4+ {[%clk
0:02:57.6]} 7. Kd1 {[%clk 0:03:01.6]} 7... Bd6 {[%clk 0:02:58]} 8. Bg3 {[%clk
0:03:00.7]} 8... Ne4 {[%clk 0:02:52.8]} 9. Qc2 {[%clk 0:02:59.3]} 9... c6 {[%clk
0:02:50.5]} 10. Bd3 {[%clk 0:02:58.5]} 10... f5 {[%clk 0:02:50.5]} 11. cxd5
{[%clk 0:02:43.9]} 11... exd5 {[%clk 0:02:49.8]} 12. Ne5 {[%clk 0:02:43.9]}
12... Nd7 {[%clk 0:02:25.7]} 13. Bxe4 {[%clk 0:02:41.6]} 13... fxe4 {[%clk
0:02:07.1]} 14. Nxc6 {[%clk 0:02:40.5]} 14... bxc6 {[%clk 0:01:56.5]} 15. Bxd6
{[%clk 0:02:40.4]} 15... Rc8 {[%clk 0:01:57.2]} 16. h4 {[%clk 0:02:20]} 16...
Qf6 {[%clk 0:01:56.2]} 17. Ba3 {[%clk 0:02:20.1]} 17... Kf7 {[%clk 0:01:49.6]}
18. Rc1 {[%clk 0:01:55]} 18... Rhe8 {[%clk 0:01:44.9]} 19. Qe2 {[%clk
0:01:54.8]} 19... Qg6 {[%clk 0:01:40.5]} 20. Kd2 {[%clk 0:01:49]} 20... Kg8
{[%clk 0:01:39.7]} 21. h5 {[%clk 0:01:43.2]} 21... Qg5 {[%clk 0:01:27.1]} 22.
Rh3 {[%clk 0:01:43.1]} 22... Nf6 {[%clk 0:01:25.8]} 23. Bc5 {[%clk 0:01:21.8]}
23... Rc7 {[%clk 0:01:16.5]} 24. Bd6 {[%clk 0:01:17.1]} 24... Rb7 {[%clk
0:01:12.2]} 25. b3 {[%clk 0:01:16.9]} 25... Rb6 {[%clk 0:01:00.6]} 26. Bc7
{[%clk 0:01:03.3]} 26... Rb7 {[%clk 0:00:57.1]} 27. Bf4 {[%clk 0:01:01.2]} 27...
Qf5 {[%clk 0:00:50.4]} 28. Rxc6 {[%clk 0:00:48.7]} 28... Qd7 {[%clk 0:00:47.6]}
29. Rc2 {[%clk 0:00:46.9]} 29... Rc8 {[%clk 0:00:45.3]} 30. Rg3 {[%clk
0:00:45.7]} 30... Rxc2+ {[%clk 0:00:38.3]} 31. Kxc2 {[%clk 0:00:46.6]} 31... Rb6
{[%clk 0:00:38.9]} 32. Kb2 {[%clk 0:00:41.9]} 32... Rc6 {[%clk 0:00:37]} 33. Be5
{[%clk 0:00:41.3]} 33... Qc8 {[%clk 0:00:31.2]} 34. Rg5 {[%clk 0:00:28]} 34...
Kf7 {[%clk 0:00:20.7]} 35. Bxf6 {[%clk 0:00:26.7]} 35... gxf6 {[%clk 0:00:17.5]}
36. Rxd5 {[%clk 0:00:26.8]} 36... Rc1 {[%clk 0:00:17.5]} 37. Qd2 {[%clk
0:00:26.1]} 37... Rg1 {[%clk 0:00:17.1]} 38. Rc5 {[%clk 0:00:21.2]} 38... Qg4
{[%clk 0:00:12.8]} 39. d5 {[%clk 0:00:21.4]} 39... Rxg2 {[%clk 0:00:06.8]} 40.
Rc7+ {[%clk 0:00:21.3]} 40... Kg8 {[%clk 0:00:05.4]} 41. d6 {[%clk 0:00:21.6]}
1-0